Workbook

Sheet Introduction
A3: . . . . . . . . . . . . . . . . . . . . . . . . . . . . . . . . . . . . . . . . . . . . . . . . . . . . . . . . . .
A5: Guidelines For Estimating
A6: Beef Replacement Heifer Costs
A7: ="For Weight Range of "&Input!D14&" - "&ROUND(Input!D24,0)&" lbs" -> For Weight Range of 550 - 1200 lbs
A8: ="Based on "&Input!D11&" Head" -> Based on 30 Head
H11: Date: | J11: September, 2024
B15: This guide is designed to provide you with planning information and a format for calculating costs of production of a replacement heifer enterprise in Manitoba. General Manitoba Agriculture recommendations are assumed in using feed and veterinary inputs. These figures provide an economic evaluation of the livestock and estimated prices required to cover all costs. Costs include labour, investment and depreciation, but do not include management costs, nor do they necessarily represent the average cost of production in Manitoba.
B22: Replacement heifers generally refers to the feeding of heifer calves from weaning until they are put onto pasture for breeding. An example of a typical replacement heifer operation would be, feed 550 pound heifers to gain 1.25 to 1.75 pounds per day for approximately 200 to 250 days and put on pasture for 120 to 140 days to gain 1.25 to 1.75 pounds per day to produce a 1200 pound bred replacement heifer.
B29: These budgets may be adjusted by putting in your own figures. As a producer you are encouraged to calculate your own costs of production. Good management is assumed in that a balanced ration is being fed, livestock are on a herd health program and handling facilities are included.
B35: This tool is available as an Excel worksheet at:
B43: is also available to help
B44: determine machinery costs.
B46: Note: This budget is only a guide and is not intended as an in-depth study of the cost of production of this industry. Interpretation and use of this information is the responsibility of the user. If you need help with a budget, contact a Farm Management Specialist.

Sheet Summary
A1: ="Replacement Heifer Production Cost Summary "&Introduction!J11 -> Replacement Heifer Production Cost Summary September, 2024
A2: ="Based on "&Input!D11&" heifers for weight range "&Input!D14&" to "&ROUND(Input!D24,0)&" lbs." -> Based on 30 heifers for weight range 550 to 1200 lbs.
A4: A. Operating Costs | F4: Cost/Head | H4: Total Cost | J4: Your Cost
A5: 1. Feed Costs
A6: 1.01 Ground Barley | F6: =Details!F20 -> 136.5 | H6: =ROUND(F6*Input!$D$11,0) -> 4095
A7: 1.02 Hay | F7: =Details!F27 -> 233.13 | H7: =ROUND(F7*Input!$D$11,0) -> 6994
A8: 1.03 Supplement | F8: =Details!F34 -> 61.6 | H8: =ROUND(F8*Input!$D$11,0) -> 1848
A9: 1.04 Other Feed | F9: =Details!F48 -> 0 | H9: =ROUND(F9*Input!$D$11,0) -> 0
A10: Total Feed Costs | F10: =SUM(F6:F9) -> 431.23 | H10: =SUM(H6:H9) -> 12937
A11: 2. Other Operating Costs
A12: 2.01 Heifer Cost | F12: =Details!F64 -> 1942.2 | H12: =ROUND(F12*Input!$D$11,0) -> 58266
A13: 2.02 Breeding Cost | F13: =Details!F122 -> 45.46 | H13: =ROUND(F13*Input!$D$11,0) -> 1364
A14: 2.03 Straw | F14: =Details!F128 -> 31.36 | H14: =ROUND(F14*Input!$D$11,0) -> 941
A15: 2.04 Veterinary Medicine & Supplies | F15: =Details!F153 -> 19.2 | H15: =ROUND(F15*Input!$D$11,0) -> 576
A16: 2.05 Annual Fuel & Repair Costs | F16: =Details!F159 -> 8.33 | H16: =ROUND(F16*Input!$D$11,0) -> 250
A17: 2.06 Utilities | F17: =Details!F164 -> 4.37 | H17: =ROUND(F17*Input!$D$11,0) -> 131
A18: 2.07 Replacement Heifer Selling Cost | F18: =Details!F178 -> 58.3 | H18: =ROUND(F18*Input!$D$11,0) -> 1749
A19: 2.08 Insurance | F19: =Details!F197 -> 15.01 | H19: =ROUND(F19*Input!$D$11,0) -> 450
A20: 2.09 Manure Removal | F20: =Details!F202 -> 11.67 | H20: =ROUND(F20*Input!$D$11,0) -> 350
A21: 2.10 Pasture Costs | F21: =Details!F212 -> 147.5 | H21: =ROUND(F21*Input!$D$11,0) -> 4425
A22: 2.11 Barn & Office Supplies | F22: =Details!F217 -> 1.2 | H22: =ROUND(F22*Input!$D$11,0) -> 36
A23: 2.12 Death Loss | F23: =Details!F225 -> 27.42 | H23: =ROUND(F23*Input!$D$11,0) -> 823
A24: Subtotal Operating Costs | F24: =ROUND(SUM(F10:F23),2) -> 2743.25 | H24: =SUM(H10:H23) -> 82298
A25: 2.13 Operating Interest | F25: =Details!F235 -> 175.22 | H25: =ROUND(F25*Input!$D$11,0) -> 5257
A26: Total Operating Costs | F26: =F24+F25 -> 2918.47 | H26: =H24+H25 -> 87555
A27: B. Fixed Costs
A28: 3. Depreciation
A29: 3.01 Buildings | F29: =Details!F267 -> 16.28 | H29: =F29*Input!D11 -> 488.4
A30: 3.02 Machinery & Equipment | F30: =Details!F274 -> 50.4 | H30: =F30*Input!D11 -> 1512
A31: 4. Investment
A32: 4.01 Buildings | F32: =Details!F284 -> 7.96 | H32: =F32*Input!D11 -> 238.8
A33: 4.02 Machinery & Equipment | F33: =Details!F292 -> 15.12 | H33: =F33*Input!D11 -> 453.6
A34: 4.03 Pasture Land | F34: =Details!F304 -> 0 | H34: =F34*Input!D11 -> 0
A35: Total Fixed Costs | F35: =SUM(F29:F34) -> 89.76 | H35: =F35*Input!D11 -> 2692.8
A36: Total Operating and Fixed Costs | F36: =SUM(F26+F35) -> 3008.23 | H36: =H26+H35 -> 90247.8
A38: C. Owners - Labour & Living | F38: =Details!F316 -> 58.5 | H38: =F38*Input!D11 -> 1755
A39: Total Cost of Production | F39: =F36+F38 -> 3066.73 | H39: =H36+H38 -> 92002.8
D41: Profitability and Breakeven Analysis
A43: Estimated Farmgate Gross Revenue | H43: Total
A44: =" "&Input!D28&" Bred Heifers @ $"&Input!D30&"/hd market price" -> 26 Bred Heifers @ $3600/hd market price | H44: =ROUND(Input!D28*Input!D30,0) -> 93600
A45: =" "&Input!D29&" Cull Heifers @ $"&Input!D32&"/hd ($"&Input!D31&"/cwt) market price" -> 4 Cull Heifers @ $3300/hd ($275/cwt) market price | H45: =ROUND(Input!D29*(Input!D24/100)*Input!D31,0) -> 13200
H46: =SUM(H44:H45) -> 106800
F48: Breakeven | H48: Breakeven
F49: Heifer Calf Purchase | H49: Bred Heifer Selling
F50: Price ($/cwt) @ | H50: Price ($/hd) @
A51: Breakeven Price | F51: ="$"&Input!D30&"/hd market price" -> $3600/hd market price | H51: ="$"&Input!D15&"/cwt heifer price" -> $350/cwt heifer price
A52: Operating Costs | F52: =((H46/Input!D11)-(F26-F12))/(Input!$D$14/100) -> 469.7690909 | H52: =($H$26-$H$45)/Input!D28 -> 2859.807692
A53: Operating Costs & Labour | F53: =((H46/Input!D11)-(F26+F38-F12))/(Input!$D$14/100) -> 459.1327273 | H53: =($H$26+H38-$H$45)/Input!D28 -> 2927.307692
A54: Operating & Fixed Costs | F54: =((H46/Input!D11)-(F36-F12))/(Input!$D$14/100) -> 453.4490909 | H54: =($H$36-$H$45)/Input!D28 -> 2963.376923
A55: Total Costs | F55: =((H46/Input!D11)-(F39-F12))/(Input!$D$14/100) -> 442.8127273 | H55: =($H$39-$H$45)/Input!D28 -> 3030.876923
A57: Marginal Returns | D57: Per Bred Heifer | F57: Per Cull Heifer | H57: Total Return
A58: Over Operating Costs | D58: =(Input!$D$30-F26) -> 681.53 | F58: =(Input!$D$32-F26) -> 381.53 | H58: =(H46-H26) -> 19245
A59: Over Operating Costs & Labour | D59: =Input!$D$30-(F26+F38) -> 623.03 | F59: =Input!$D$32-(F26+F38) -> 323.03 | H59: =(H46-(H26+H38)) -> 17490
A60: Over Operating & Fixed Costs | D60: =(Input!$D$30-F36) -> 591.77 | F60: =(Input!$D$32-F36) -> 291.77 | H60: =(H46-(H26+H35)) -> 16552.2
A61: Over Total Costs | D61: =(Input!$D$30-F39) -> 533.27 | F61: =(Input!$D$32-F39) -> 233.27 | H61: =(H46-H39) -> 14797.2
A63: Estimated Return on Investment (ROI) | F63: =(H46-H39)/H39 -> 0.1608342355
A64: Estimated Return on Asset (ROA) | F64: =((H46-H26-H38-H32-H33)/Input!D155) -> 0.5646252101
A66: Cost Summary
F68: Cost/Heifer/day
B69: ="Summer grazing (based on "&Input!D22&" days)" -> Summer grazing (based on 140 days) | F69: =SUM((F34+F21)/Input!D22) -> 1.053571429
B70: ="Winter feed (based on "&Input!D17&" days)" -> Winter feed (based on 224 days) | F70: =SUM(F10/Input!D17) -> 1.925133929
B71: ="Yardage (based on "&Input!D17&" days)" -> Yardage (based on 224 days) | F71: =(F14+F16+F17+F20+F29+F30+F32+F33+F38)/(Input!D17) -> 0.9106696429
A73: Note: This budget is only a guide and is not intended as an in-depth study of the cost of production of this industry. Interpretation and utilization of this information is the responsibility of the user. No liability for decisions based on this publication is assumed.

Sheet Input
K1: HIDE
A2: Replacement Heifer Production Costs
A4: Assumptions
A5: 1. This budget outlines the cost of production for a replacement heifer enterprise.
A6: 2. Buildings and equipment are valued at new cost.
A7: 3. All feed is purchased.
A10: Herd Profile
A11: Number of Replacement Heifers Purchased | D11: 30 | E11: head
A12: Number of Bulls | D12: 1 | E12: bulls
A13: Heifer Mortality Rate | D13: 1 | E13: %
A14: Heifer Purchased Weight | D14: 550 | E14: lbs
A15: Heifer Calf Price | D15: 350 | E15: /cwt
A17: Days on Feed (feedlot) | D17: 224 | E17: days
A18: Average Daily Gain (feedlot) | D18: 2 | E18: lbs/day
A19: Replacement Heifer Ending Feedlot Weight | D19: =ROUND(D17*D18+D14,0) -> 998 | E19: lbs
A21: On Pasture Weight | D21: 1000 | E21: lbs
A22: Days on Pasture | D22: 140 | E22: days
A23: Average Daily Gain (pasture) | D23: 1.43 | E23: lbs/day
A24: Off Pasture Weight | D24: =ROUND(D22*D23+D21,0) -> 1200 | E24: lbs
A26: Estimated Culling rate Bred Replacement Heifers | D26: 12 | E26: %
A27: Calculated culling rate Bred Replacement Heifers | D27: =SUM(D29/D11)*100 -> 13.33333333 | E27: % (due to rounding)
A28: Number Bred Heifers Marketed | D28: =ROUND(D11*(1-D26/100),0) -> 26
A29: Number Cull Heifers marketed | D29: =ROUND(D11*(D26/100),0) -> 4
A30: Bred Replacement Heifer market value | D30: 3600 | E30: /head
A31: Cull heifer market price | D31: 275 | E31: /cwt
A32: Cull heifer market value | D32: =SUM(D24/100*D31) -> 3300 | E32: /head
A34: Herd Replacement (Bulls)
A35: Bull Replacement Rate | D35: 25 | E35: %
A36: Original Cost | D36: 5000 | E36: /bull
A37: Price Received/Cull Bull | D37: 3500 | E37: /bull
A39: Pasture Costs | E39: Usage
A40: Rented Pasture Costs (per head per day) | D40: 1 | E40: 100 | F40: %
A41: Owned Pasture Land Value (per acre) | D41: 1800 | E41: 0 | F41: %
A42: Owned Pasture Carrying Capacity (acres/head) | D42: 2.5 | E42: =SUM(E40:E41) -> 100 | F42: =IF(E42<>100,"ERROR - Must equal 100%","") -> 
A43: Owned Pasture Property Taxes (per acre) | D43: 10
A44: Pasture checking costs (ie. fuel) | D44: 225
A46: Feed Costs
B47: Market | D47: Replacement Heifer | G47: Days on
B48: Price | D48: Requirement | G48: Feed
A50: Ground Barley | B50: 4.5 | C50: /bu | D50: 6.5 | E50: lbs/day | G50: =D17 -> 224
A51: Hay | B51: 115 | C51: /ton | D51: 18.1 | E51: lbs/day | G51: =D17 -> 224
A52: Mineral/Rumensin Pre Mix | B52: 550 | C52: /ton | D52: 1 | E52: lbs/day | G52: =D17 -> 224
A53: Other Feed #1 | B53: 0 | C53: /ton | D53: 0 | E53: lbs/day | G53: 0
A54: Other Feed #2 | B54: 0 | C54: /ton | D54: 0 | E54: lbs/day | G54: 0
A57: FOOTNOTE: 1 bushel (bu) barley = 48 lbs = 21.8 kg
A58: 1 kilogram (kg) = 2.2046 pounds (lbs)
A59: 1 tonne (t) = 1,000 kg
A61: Other Operating Costs
A63: Heifer Purchase Costs
A64: Buying Commission | D64: 5 | E64: /head
A65: Trucking-in | D65: 1.9 | E65: /cwt
A66: Insurance fee | D66: 1.75 | E66: /head
A68: Straw Bedding
A69: Heifers number of lbs/day | D69: 4 | E69: /head
A70: Bulls - number of tons/Bull/Year | D70: 1
A71: Cost/Ton | D71: 70 | E71: /ton
A73: Veterinary Medicine & Supplies
A74: Cattle Medication
A75: IBR,BVD,PI3,BRSV, Pasteurella | D75: 5 | E75: /head
A76: Vitamin A-D | D76: 0.5 | E76: /head
A77: External & Internal Parasites | D77: 0.72 | E77: /head
A78: Blackleg & Haemophilus | D78: 1.65 | E78: /head
A79: Antibiotics | D79: 0 | E79: /head
A81: Herd Health Program
A82: Professional Services
A83: Total Yearly Hours | D83: 1 | E83: hours
A84: Rate | D84: 180 | E84: /hour
A85: Transportation
A86: Total Kilometres (round trip) | D86: 80 | E86: km
A87: Rate | D87: 1 | E87: /km
A88: Number of Yearly Visits | D88: 2
A90: Annual Fuel & Repair Costs
A91: Repairs (Machinery, Equipment & Facilities) | D91: 100
A92: Fuel Costs | D92: 150
A94: Utilities
A95: Hydro - Rate | D95: 0.09587 | E95: / kWh
A96: 12 | B96: kWh per heifer | D96: =SUM(A96*D11*D95) -> 34.5132
A97: 0.25 | B97: 1000 watt waterer | D97: =SUM(A97*18)*(D17)*D95 -> 96.63696
C98: Total Hydro | D98: =SUM(D96:D97) -> 131.15016
A100: Trucking Cost
A101: Average Weight | D101: =D24 -> 1200 | E101: /lbs per head
A102: Trucking Cost | D102: 1.9 | E102: /cwt
A104: Marketing Cost
A105: MBP/NCO Levy $/Head | D105: 5.5 | E105: /head
A106: Commission on Sales | D106: 30 | E106: /head
A107: Market Value | D107: =SUM(D30*100)/D24 -> 300 | E107: /cwt
A109: Manure Removal
A110: Annual Cost for Removal | D110: 350
A112: Insurance
A113: Cost per $100 Capital Invested in
A114: a) Livestock | D114: 0.45 | E114: /$100
A115: b) Building & Equipment | D115: 0.4 | E115: /$100
A116: Additional Coverage for Liability | D116: 49 | E116: /year
A118: Barn & Office Supplies
A119: Total yearly expense relating to barn | D119: 36
A122: Operating Interest Rate | D122: 7.5 | E122: %
A123: Investment Interest Rate | D123: 4 | E123: %
A125: Feed Requirement Per Bull
A126: Barley | D126: 7 | E126: lbs/day
A127: Days/Year on Barley | D127: 120 | E127: days
A128: Hay (Good Quality) | D128: 4 | E128: tons/yr
A130: Breeding Costs
A131: Health Management Costs | D131: 10 | E131: /bull
A132: Semen Test | D132: 60 | E132: /bull
A134: FOOTNOTE: cwt = hundred-weight = 100 lbs
A136: Capital Costs | D136: Original | E136: Salvage | G136: Useful
D137: Value | E137: Value | G137: Life
A138: Buildings,Corrals & Water System
A139: Windbreak fence | D139: 800 | E139: 10 | F139: % | G139: 20 | H139: years
A140: Pens | D140: 800 | E140: 10 | F140: % | G140: 20 | H140: years
A141: Handling Facilities | D141: 2000 | E141: 10 | F141: % | G141: 20 | H141: years
A142: Waterers | D142: 1200 | E142: 10 | F142: % | G142: 20 | H142: years
A143: Gates | D143: 300 | E143: 10 | F143: % | G143: 20 | H143: years
A144: Feeders | D144: 500 | E144: 10 | F144: % | G144: 20 | H144: years
A145: Bunk Feeders | D145: 1250 | E145: 10 | F145: % | G145: 20 | H145: years
A146: Well & Pressure System | D146: 2000 | E146: 10 | F146: % | G146: 20 | H146: years
A147: Grain Bin | D147: 1000 | E147: 10 | F147: % | G147: 20 | H147: years
A148: Landscaping | D148: 1000 | E148: 10 | F148: % | G148: 20 | H148: years
A149: Total | D149: =SUM(D139:D148) -> 10850
A151: Machinery & Equipment
A152: =" Tractors & Loader ($"&TEXT(K152,"#,###")&" @ "&L152&"%)" -> Tractors & Loader ($160,000 @ 4%) | D152: =SUM(K152*(L152/100)) -> 6400 | E152: 20 | F152: % | G152: 10 | H152: years | K152: 160000 | L152: 4 | M152: %
A153: Miscellaneous | D153: 12500 | E153: 20 | F153: % | G153: 10 | H153: years
A155: Total Investment | D155: =D149+D152+D153 -> 29750
A157: Labour Costs | E157: Total
A158: Feedlot Labour - Hours/heifer | E158: 1 | F158: hours
A159: Pasture Labour - Hours/day | E159: 0.25 | F159: hours
A160: Labour Rate | E160: 27 | F160: /hour

Sheet Details
A1: Replacement Heifer Production Cost Worksheet
A3: Assumptions
B5: ="1. Feedlot average daily gain (ADG) was assumed to be "&Input!D18&" lbs/day." -> 1. Feedlot average daily gain (ADG) was assumed to be 2 lbs/day.
B6: =" Pasture average daily gain (ADG) was assumed to be "&Input!D23&" lbs/day." -> Pasture average daily gain (ADG) was assumed to be 1.43 lbs/day.
B7: ="2. It was assumed the heifer calves weighed in at "&Input!D14&" lbs shrunk weight," -> 2. It was assumed the heifer calves weighed in at 550 lbs shrunk weight,
B8: =" and was raised to "&ROUND(Input!D19,0)&" lbs (feedlot) and "&ROUND(Input!D24,0)&" lbs (pasture)." -> and was raised to 998 lbs (feedlot) and 1200 lbs (pasture).
B9: ="3. Days on feed was "&Input!D17&" and days on pasture was "&Input!D22&"." -> 3. Days on feed was 224 and days on pasture was 140.
B10: ="4. Investment in facilities and equipment was assumed to handle "&Input!D11&" head." -> 4. Investment in facilities and equipment was assumed to handle 30 head.
B12: A. Operating Costs | J12: Your Cost
B14: 1. Feed Costs
C15: 1.01 Ground Barley
F16: =Input!G50 -> 224 | H16: days on ground barley
D17: x | F17: =Input!D50 -> 6.5 | H17: lbs/heifer/day
D18: ÷ | F18: 48 | H18: lbs/bu
D19: x | F19: =Input!B50 -> 4.5 | H19: /bu
D20: = | F20: =ROUND(((F16*F17)/F18)*F19,2) -> 136.5 | H20: /heifer
C22: 1.02 Hay
F23: =Input!G51 -> 224 | H23: days on hay
D24: x | F24: =Input!D51 -> 18.1 | H24: lbs/heifer/day
D25: ÷ | F25: 2000 | H25: lbs/ton
D26: x | F26: =Input!B51 -> 115 | H26: /ton
D27: = | F27: =ROUND(((F23*F24)/F25)*F26,2) -> 233.13 | H27: /heifer
C29: 1.03 Supplement (Salt, Minerals,Vitamins, Ionophore)
F30: =Input!G52 -> 224 | H30: days on supplement
D31: x | F31: =Input!D52 -> 1 | H31: lbs/heifer/day
D32: ÷ | F32: 2000 | H32: lbs/ton
D33: x | F33: =Input!B52 -> 550 | H33: /ton
D34: = | F34: =ROUND(((F30*F31)/F32)*F33,2) -> 61.6 | H34: /heifer
C36: 1.04 Other Feed
F37: =Input!G53 -> 0 | H37: days on other feed
D38: x | F38: =Input!D53 -> 0 | H38: lbs/heifer/day
D39: ÷ | F39: 2000 | H39: lbs/ton
D40: x | F40: =Input!B53 -> 0 | H40: /ton
D41: = | F41: =ROUND(((F37*F38)/F39)*F40,2) -> 0 | H41: /heifer
F43: =Input!G54 -> 0 | H43: days on other feed
D44: x | F44: =Input!D54 -> 0 | H44: lbs/heifer/day
D45: ÷ | F45: 2000 | H45: lbs/ton
D46: x | F46: =Input!B54 -> 0 | H46: /ton
D47: = | F47: =ROUND(((F43*F44)/F45)*F46,2) -> 0 | H47: /heifer
C48: Total | D48: = | F48: =ROUND(F47+F41,2) -> 0 | H48: /heifer
B50: 2. Other Operating Costs
C51: 2.01 Heifer Cost
C52: Commission | F52: =Input!D64 -> 5 | H52: /heifer
C53: Insurance | F53: =Input!D66 -> 1.75 | H53: /heifer
C55: Trucking-in | F55: =Input!D65 -> 1.9 | H55: /cwt
D56: x | F56: =Input!D14 -> 550 | H56: /heifer
D57: ÷ | F57: 100 | H57: lbs/cwt
D58: = | F58: =ROUND(F55*F56/F57,2) -> 10.45 | H58: /heifer
C60: Heifer | F60: =Input!D14 -> 550 | H60: lbs/heifer
D61: x | F61: =Input!D15 -> 350 | H61: /cwt
D62: ÷ | F62: 100 | H62: lbs/cwt
D63: = | F63: =ROUND(F60/100*F61,2) -> 1925 | H63: /heifer
C64: Total | D64: = | F64: =ROUND(F52+F53+F58+F63,2) -> 1942.2 | H64: /heifer
C66: 2.02 Breeding Costs
C67: Feed for Bulls
D68: Hay
F69: =Input!D128 -> 4 | H69: tons good quality
E70: x | F70: =F26 -> 115 | H70: /ton
E71: x | F71: =Input!D12 -> 1 | H71: bulls
E72: ÷ | F72: =Input!D11 -> 30 | H72: replacement heifers
E73: = | F73: =ROUND(((F69*F70)*F71)/F72,2) -> 15.33 | H73: /heifer
D75: Barley | F75: =Input!D126 -> 7 | H75: lbs barley/bull/day
E76: x | F76: =Input!D127 -> 120 | H76: days
E77: ÷ | F77: 48 | H77: lbs/bu
E78: x | F78: =Input!B50 -> 4.5 | H78: /bushel
E79: x | F79: =F71 -> 1 | H79: bulls
E80: ÷ | F80: =F72 -> 30 | H80: replacement heifers
E81: = | F81: =ROUND(((F75*F76/F77)*(F78)*F79)/F80,2) -> 2.63 | H81: /heifer
C83: Total | E83: = | F83: =ROUND(F73+F81,2) -> 17.96 | H83: /heifer
C85: Straw for Bulls
F86: =Input!D70 -> 1 | H86: tons/bull/year
E87: x | F87: =Input!D71 -> 70 | H87: /ton
E88: x | F88: =F79 -> 1 | H88: bulls
E89: ÷ | F89: =F80 -> 30 | H89: replacement heifers
E90: = | F90: =ROUND((F86*F87*F88)/F89,2) -> 2.33 | H90: /heifer
C92: Vet & Medicine for Bulls
F93: =Input!D132 -> 60 | H93: semen test
E94: + | F94: =Input!D131 -> 10 | H94: total vet cost/bull
E95: x | F95: =F88 -> 1 | H95: bulls
E96: ÷ | F96: =F89 -> 30 | H96: replacement heifers
E97: = | F97: =ROUND(((F93+F94)*F95)/F96,2) -> 2.33 | H97: /heifer
C99: Replacement of Bulls
F100: =Input!D36 -> 5000 | H100: bull cost
E101: - | F101: =Input!D37 -> 3500 | H101: bull salvage value
E102: x | F102: =Input!D35 -> 25 | H102: % replacement rate
E103: x | F103: =F95 -> 1 | H103: bulls
E104: ÷ | F104: =F96 -> 30 | H104: replacement heifers
E105: = | F105: =ROUND(((F100-F101)*F102)*F103/F104,2)/100 -> 12.5 | H105: /heifer
C107: Investment in Bulls
F108: =Input!D36 -> 5000 | H108: bull cost
E109: + | F109: =Input!D37 -> 3500 | H109: bull salvage value
E110: ÷ | F110: 2 | H110: average
E111: x | F111: =Input!D123 -> 4 | H111: % investment rate
E112: x | F112: =F103 -> 1 | H112: bulls
E113: ÷ | F113: =F104 -> 30 | H113: replacement heifers
E114: = | F114: =ROUND((((F108+F109)/F110)*F111)*F112/F113,2)/100 -> 5.6667 | H114: /heifer
C116: Pasture Costs for Bulls
F117: =SUM(Input!D22*Input!D40) -> 140 | H117: /bull pasture cost
E118: x | F118: =F112 -> 1 | H118: bulls
E119: ÷ | F119: =F113 -> 30 | H119: replacement heifers
E120: = | F120: =ROUND((F117*F118)/F119,2) -> 4.67 | H120: /heifer
C122: Total | E122: = | F122: =ROUND(F83+F90+F97+F105+F114+F120,2) -> 45.46 | H122: /heifer
C124: 2.03 Straw
D125: Heifers | F125: =Input!D69 -> 4 | H125: lbs/heifer/day
D126: x | F126: =Input!D17 -> 224 | H126: days on feed
D127: x | F127: =Input!D71 -> 70 | H127: /ton
D128: = | F128: =ROUND((F125*F126)*(F127/2000),2) -> 31.36 | H128: /heifer
C130: 2.04 Veterinary Medicine & Supplies
C131: Cattle Medication
F132: =Input!D75 -> 5 | H132: IBR,BVD,PI3,BRSV,Pasteurella
D133: + | F133: =Input!D76 -> 0.5 | H133: Vitamin A-D
D134: + | F134: =Input!D77 -> 0.72 | H134: External & Internal Parasites
D135: + | F135: =Input!D78 -> 1.65 | H135: Blackleg & Haemophilus
D136: + | F136: =Input!D79 -> 0 | H136: Antibiotics
D137: = | F137: =SUM(F132:F136) -> 7.87 | H137: /heifer
C139: Herd Health Program
C140: Professional Services
F141: 180 | H141: /hour charge
D142: x | F142: =Input!D83 -> 1 | H142: hours
D143: ÷ | F143: =Input!D11 -> 30 | H143: replacement heifers
D144: = | F144: =ROUND(F141*F142/F143,2) -> 6 | H144: /heifer
C146: Transportation Costs
F147: =Input!D87 -> 1 | H147: /km charge
D148: x | F148: =Input!D86 -> 80 | H148: kilometres
D149: x | F149: =Input!D88 -> 2 | H149: visits
D150: ÷ | F150: =Input!D11 -> 30 | H150: replacement heifers
D151: = | F151: =ROUND(F147*F148*F149/F150,2) -> 5.33 | H151: /heifer
C153: Total | D153: = | F153: =ROUND(F137+F144+F151,2) -> 19.2 | H153: /heifer
C155: 2.05 Annual Fuel & Repair Costs
F156: =Input!D91 -> 100 | H156: repairs
D157: + | F157: =Input!D92 -> 150 | H157: fuel costs
D158: ÷ | F158: =Input!D11 -> 30 | H158: replacement heifers
D159: = | F159: =ROUND(SUM(F156+F157)/F158,2) -> 8.33 | H159: /heifer
C161: 2.06 Utilities
F162: =SUM(Input!D98) -> 131.15016 | H162: cost/year
D163: ÷ | F163: =Input!D11 -> 30 | H163: replacement heifers
D164: = | F164: =ROUND((F162)/F163,2) -> 4.37 | H164: /heifer
C166: 2.07 Heifer Selling Cost
C167: Trucking
F168: =Input!D101 -> 1200 | H168: lbs/heifer
D169: ÷ | F169: 100 | H169: lbs/cwt
D170: x | F170: =Input!D102 -> 1.9 | H170: trucking cost/cwt
D171: = | F171: =ROUND(F168*F170/F169,2) -> 22.8 | H171: /heifer
C173: MBP levy, selling commission
D174: + | F174: =Input!D105 -> 5.5 | H174: MBP Levy
D175: + | F175: =Input!D106 -> 30 | H175: commission
D176: = | F176: =+F174+F175 -> 35.5 | H176: /heifer
C178: Total | D178: = | F178: =F171+F176 -> 58.3 | H178: /heifer
C180: 2.08 Insurance
F181: =Input!D155 -> 29750 | H181: building & equipment investment
D182: x | F182: =Input!D115 -> 0.4 | H182: /$100 capital
D183: ÷ | F183: 100 | H183: /$100
D184: ÷ | F184: =Input!D11 -> 30 | H184: replacement heifers
D185: = | F185: =ROUND(F181*F182/F183/F184,2) -> 3.97 | H185: /heifer
F187: =SUM(Input!D11*(Input!D14/100*Input!D15))+(Input!D12*Input!D36) -> 62750 | H187: herd investment
D188: x | F188: =Input!D114 -> 0.45 | H188: /$100 capital
D189: ÷ | F189: 100 | H189: /$100
D190: ÷ | F190: =Input!D11 -> 30 | H190: replacement heifers
D191: = | F191: =ROUND(F187*F188/F189/F190,2) -> 9.41 | H191: /heifer
F193: =Input!D116 -> 49 | H193: additional coverage for liability
D194: ÷ | F194: =Input!D11 -> 30 | H194: replacement heifers
D195: = | F195: =F193/F194 -> 1.633333333 | H195: /heifer
C197: Total | D197: = | F197: =ROUND(F185+F191+F195,2) -> 15.01 | H197: /heifer
C199: 2.09 Manure Removal
F200: =Input!D110 -> 350 | H200: annual removal cost
D201: ÷ | F201: =Input!D11 -> 30 | H201: replacement heifers
D202: = | F202: =ROUND(F200/F201,2) -> 11.67 | H202: /heifer
C204: 2.10 Pasture Costs
D205: Pasture Rental | F205: =Input!D40 -> 1 | H205: cost/head/day rental
D206: ÷ | F206: =Input!D22 -> 140 | H206: days on pasture
D207: x | F207: =Input!E40 -> 100 | H207: pasture usage
D208: = | F208: =IF(Input!E42<>100,"ERROR",SUM(F205*F206)*F207/100) -> 140 | H208: /heifer
D209: Pasture Checking | F209: =Input!D44 -> 225 | H209: cost per year
D210: ÷ | F210: =Input!D11 -> 30 | H210: replacement heifers
D211: = | F211: =SUM(F209/F210) -> 7.5 | H211: /heifer
C212: Total | D212: = | F212: =F208+F211 -> 147.5 | H212: /heifer
C214: 2.11 Barn & Office Supplies
F215: =Input!D119 -> 36 | H215: total barn expenses
D216: ÷ | F216: =Input!D11 -> 30 | H216: replacement heifers
D217: = | F217: =ROUND(F215/F216,2) -> 1.2 | H217: /heifer
C219: 2.12 Death Loss
F220: =F64 -> 1942.2 | H220: heifer cost
D221: + | F221: =Input!D30 -> 3600 | H221: maximum value
D222: - | F222: =Summary!F18 -> 58.3 | H222: selling costs
D223: ÷ | F223: 2 | H223: average
D224: x | F224: =Input!D13 -> 1 | H224: % mortality rate
D225: = | F225: =ROUND(((F220+(F221-F222))/F223)*F224/100,2) -> 27.42 | H225: /heifer
C227: 2.13 Operating Interest
C228: (Operating interest is charged on one half the subtotal operating costs)
F230: =F64 -> 1942.2 | H230: heifer cost
D231: + | F231: =(Summary!F10+SUM(Summary!F13:F23))/2 -> 400.525 | H231: ½ of feed & other costs
D232: x | F232: =Input!D122 -> 7.5 | H232: % operating interest
D233: x | F233: =SUM(Input!D17+Input!D22) -> 364 | H233: days on feed & pasture
D234: ÷ | F234: 365 | H234: days /year
D235: = | F235: =ROUND(((F230+F231)*(F232)*(F233/F234/100)),2) -> 175.22 | H235: /heifer
B237: Capital Costs
C239: Buildings,Corrals & Water System
C240: Windbreak fence | H240: =Input!D139 -> 800
C241: Pens | H241: =Input!D140 -> 800
C242: Handling Facilities | H242: =Input!D141 -> 2000
... 75 more rows
